Workbook

Sheet Photovoltaic module
B1: version: 1.1. - FREE LITE VERSION | S1: © 2014-2019 Damian Janicki
E2: YourSpreadsheets™ 2nd Floor, 52 Marcus Hill, London www.YourSpreadsheets.co.uk Tel: 020 7542 8734 | Q2: TEST PROJECT | AG2: roof type:
W3: Revision | Y3: B | AD3: Roof slope, θ [deg] = | AE3: =IF(C8=AG3,20,0) -> 0 | AG3: PV panels mounted on or above pitched roof
Q4: Job No: | T4: 22668 | W4: Page: | Y4: C/01 | AD4: PV Type = | AE4: =IF(C8=AG4,Calculations!O11,Calculations!O10) -> Fixed | AG4: PV panels mounted on flat roof - free standing (ballasted)
C5: Section: | E5: FIRST FLOOR SLAB - SHEAR CHECKS | Q5: Prepared By: | T5: DJ | W5: Date: | Y5: =TODAY() -> 2019-11-17 | AD5: Percent tributary area = | AE5: =IF(PVType="Fixed", 0.25, IF(PVType="Ballasted", 1, "PV TYPE INVALID")) -> 0.25 | AG5: PV panels mounted on flat roof - mechanically fixed
AD6: Angle of plane of panel to roof, ω [degrees] = | AE6: =IF(NOT(C8=AG3),20,0) -> 20 | AG6: =MATCH(C8,AG3:AG5,0)+1 -> 4
C7: PHOTOVOLTAIC (PV) PANEL TYPE | Q7: SUMMARY | AD7: Nominal net pressure coefficient, (GC_rn)_nom = | AE7: not used anymore
C8: PV panels mounted on flat roof - mechanically fixed | Q8: =IF(C8=AG4,"Required ballast per PV panel [lbs] =","Force per fixing per PV panel [lbs] =") -> Force per fixing per PV panel [lbs] = | X8: =IF(C8=AG4,FIXED(Z53,1),FIXED(Z54,1)&" / "&FIXED(Z55,1)) -> 83.0 / -52.1 | AD8: Edge factor, E = | AE8: not used anymore
AD9: Design in-to-roof wind pressure, p [psf] = | AE9: =q_h*GC_rn_d -> 26.88838367
C10: BUILDING AND WIND DATA | Q10: DIAGRAM: SECTION | AD10: Design wind pressure, p [psf] = | AE10: =ABS(q_h * GC_rn) -> 26.88838367 | AF10: per panel: | AI10: BASIC GEOMETRY CHECKS
C11: Mean roof height above ground 'h' [ft] = | N11: 60.0 | AD11: In-to-roof force on PV panel, F [lbs] = | AE11: =p_dwn * A_t -> 71.00213813 | AF11: =F_d*4 -> 284.0085525 | AI11: =Z49 -> OK | AJ11: h < 60ft
C12: Parapet height 'hpt' [ft] = | N12: 1.0 | AD12: Uplift force on PV panel, F [lbs] = | AE12: =p * A_t -> 71.00213813 | AF12: =F*4 -> 284.0085525 | AI12: =Z50 -> NOT OK | AJ12: h < min(L,B)
C13: Building length 'L' [ft] = | N13: 12.0 | AD13: Horizontal uplift force on panel, F_horiz [lbs] = | AE13: =F *SIN(ω*PI()/180) -> 24.28416146 | AF13: =F_horiz*4 -> 97.13664585 | AI13: =IF(OR(AND(MATCH(C8,AG3:AG5,0)=1,N15<=45),N15<=35),"OK","NOT OK") -> OK | AJ13: =IF(MATCH(C8,AG3:AG5,0)=1,"θ < 45deg","ω < 35deg") -> ω < 35deg
C14: Building width 'B' [ft] = | N14: 11.0 | AD14: Vertical uplift force on panel, F_vert [lbs] = | AE14: =F * COS(ω*PI()/180) -> 66.72018527 | AF14: =F_vert*4 -> 266.8807411 | AG14: without s/w | AI14: =IF(l_p<=6+8/12,"OK","NOT OK") -> OK | AJ14: lp < 6'-8"
C15: =IF(MATCH(C8,AG3:AG5,0)=1,"Roof angle from horizontal 'θ'","Angle of plane of panel to roof 'ω'") -> Angle of plane of panel to roof 'ω' | L15: [deg] = | N15: 20.0 | AD15: Required ballast weight for uplift, W_blst_up [lbs] = | AE15: =IF(PVType="Ballasted", (F_vert - 0.9*P_D*A)/0.9, 0) -> 0 | AG15: =F_vert/0.9 -> 74.13353918 | AI15: =IF(C8=AG3,"N/A",IF(h_1<=2,"OK","NOT OK")) -> OK | AJ15: h1 < 2'-0"
C16: Wind velocity 'V' [mph] = | N16: 75 | AD16: Required ballast weight for sliding, W_blst_sld [lbs] = | AE16: =IF(PVType="Ballasted", (F_horiz/μ + F_vert - 0.9*P_D*A)/0.9, 0) -> 0 | AG16: =(F_horiz/μ + F_vert)/0.9 -> 141.5895432
C17: Topographic factor 'Kzt' = | N17: 1.00
C18: Wind exposure category = | N18: C | AF18: diagram data
C19: Wind directionality factor 'Kd' = | N19: 0.85 | AD19: Edge panel: | AF19: lp | AG19: =IF(C8=AG3,"",3.25) -> 3.3
C20: Velocity pressure exposure coefficient 'Kz' = | N20: =IF(θ<=7, IF(exposureCategory="B",FORECAST(h,OFFSET(Calculations!$J$7:$J$29,MATCH(h,Calculations!$I$7:$I$29,1)-1,0,2),OFFSET(Calculations!$I$7:$I$29,MATCH(h,Calculations!$I$7:$I$29,1)-1,0,2)),IF(exposureCategory="C",FORECAST(h,OFFSET(Calculations!$K$7:$K$29,MATCH(h,Calculations!$I$7:$I$29,1)-1,0,2),OFFSET(Calculations!$I$7:$I$29,MATCH(h,Calculations!$I$7:$I$29,1)-1,0,2)),IF(exposureCategory="D",FORECAST(h,OFFSET(Calculations!$L$7:$L$29,MATCH(h,Calculations!$I$7:$I$29,1)-1,0,2),OFFSET(Calculations!$I$7:$I$29,MATCH(h,Calculations!$I$7:$I$29,1)-1,0,2)),"EXP CAT INVALID"))), IF(h < 15, 2.01*(15/z_g)^(2/α), 2.01*(h/z_g)^(2/α))) -> 1.13 | AD20: Yes | AF20: h1 | AG20: =IF(C8=AG3,"",h_1) -> 0.5
C21: Velocity pressure 'qh' [psf] = | N21: =0.00256 * K_z * K_zt *K_d * V^2 -> 13.83 | AD21: No | AF21: panel angle | AG21: =IF(C8=AG3,"",20) -> 20.0
C22: Roof shape determinant 'apv' [ft] = | N22: =MIN(0.5*SQRT(h*W_L), h) -> 13.4 | AA22: (Not to scale) | AD22: Calculate for: | AF22: lp - sloped roof | AG22: =IF(C8=AG3,3.25,"") -> 
AD23: Worst case panel design | AF23: roof angle | AG23: =IF(C8=AG3,20,"") -> 
C24: PV PANEL DATA | Q24: DIAGRAM: ROOF LAYOUT | AD24: North-East panel design | AF24: length | AG24: =W_L -> 12.0
C25: Panel width 'b' [ft] = | N25: 3.3 | AD25: South-East panel design | AF25: depth | AG25: =W_S -> 11.0
C26: Panel chord lenght 'lp' [ft] = | N26: 5.0 | AD26: South-West panel design
C27: Panel height above roof at low edge 'h1' [ft] = | N27: 0.5 | AD27: North-West panel design
C28: Self weight of solar panel 'W' [lbs] = | N28: 65.0
C29: Coefficient of friction 'μ' = | N29: 0.4 | AD29: NORTH Horizontal distance measured orthogonal to the panel edges in the NORTH direction to building edge [ft] = | AE29: =F33 -> 2.0
AD30: Horizontal distance measured orthogonal to the panel edges in the NORTH direction to adjacent panel [ft] = | AE30: =M33 -> 6.00 | AF30: =IF(isEdgePanel_N,"",d_pN) -> 
C31: PV ARRAY LOCATION (see layout) | AD31: Panel is an edge panel unobstructed by other panels from NORTH side? = | AE31: =IF(I33=$AD$20,TRUE,FALSE) -> TRUE
C32: Direction: | F32: 'dedge' [ft]: | I32: edge panel: | M32: 'dadjacent' [ft]: | AD32: EAST Horizontal distance measured orthogonal to the panel edges in the EAST direction to building edge [ft] = | AE32: =F34 -> 2.0
C33: North | F33: 2.0 | I33: Yes | M33: 6.00 | AD33: Horizontal distance measured orthogonal to the panel edges in the EAST direction to adjacent panel [ft] = | AE33: =M34 -> 5.00 | AF33: =IF(isEdgePanel_E,"",d_pE) -> 
C34: East | F34: 2.0 | I34: Yes | M34: 5.00 | AD34: Panel is an edge panel unobstructed by other panels from EAST side? = | AE34: =IF(I34=$AD$20,TRUE,FALSE) -> TRUE
C35: South | F35: 2.0 | I35: Yes | M35: 2.00 | AD35: SOUTH Horizontal distance measured orthogonal to the panel edges in the SOUTH direction to building edge [ft] = | AE35: =F35 -> 2.0
C36: West | F36: 2.0 | I36: Yes | M36: 14.00 | AD36: Horizontal distance measured orthogonal to the panel edges in the SOUTH direction to adjacent panel [ft] = | AE36: =M35 -> 2.00 | AF36: =IF(isEdgePanel_S,"",d_pS) -> 
C37: Calculation type: | H37: North-East panel design | AA37: (Not to scale. Panels and obstructions are indicative only) | AD37: Panel is an edge panel unobstructed by other panels from SOUTH side? = | AE37: =IF(I35=$AD$20,TRUE,FALSE) -> TRUE
C38: dedge - distance to building edge in given direction. edge panel - panel unobstracted by other panels in given direction. dadjacent - distance to adjacent panel in given direction. | AD38: WEST Horizontal distance measured orthogonal to the panel edges in the WEST direction to building edge [ft] = | AE38: =F36 -> 2.0
AD39: Horizontal distance measured orthogonal to the panel edges in the WEST direction to adjacent panel [ft] = | AE39: =M36 -> 14.00 | AF39: =IF(isEdgePanel_W,"",d_pW) -> 
AD40: Panel is an edge panel unobstructed by other panels from WEST side? = | AE40: =IF(I36=$AD$20,TRUE,FALSE) -> TRUE
C41: PV ARRAY ANALYSIS | Q41: CALCULATIONS: WIND FORCES
C42: Corner: | E42: Zone: | G42: 'hc-X' [ft]: | I42: 'GCp' | K42: 'γc*(GCrn)nom' | N42: 'E' factor: | Q42: Reduction for wind tunnel tests & load sharing = | Z42: 0% | AD42: GCp calculations (plus and minus) | AF42: yc * GCrn_nom * E
C43: North-East | E43: =Calculations!D7 -> 3 | G43: =INDEX(Calculations!E29:E32,MATCH(Calculations!$G$33,Calculations!$G$29:$G$32,0)) -> 1.34 | I43: =IF($C$8=$AG$3,FIXED(AD43,1)&"/"&FIXED(AE43,1),"N/A") -> N/A | K43: =IF($C$8=$AG$3,"N/A",OFFSET(Calculations!$G$17,0,-'Photovoltaic module'!E43)) -> 1.944 | N43: =IF($C$8=$AG$3,"N/A",Calculations!$G$33) -> 1.00 | Q43: In-to-roof force on PV panel 'Fin-to-roof' [lbs] = | Z43: =(1-$Z$42)*F_d*IF(PVType="Fixed", 4, IF(PVType="Ballasted", 1)) -> 284.0 | AD43: =INDEX(IF(θ<=27,Calculations!$D$59:$F$59,Calculations!$D$66:$F$66),1,E43) -> -2.600 | AE43: =INDEX(IF(θ<=27,Calculations!$D$60:$F$60,Calculations!$D$67:$F$67),1,E43) -> 0.500 | AF43: =IF(NOT($C$8=$AG$3),K43*N43,"N/A") -> 1.944
C44: South-East | E44: =Calculations!E7 -> 3 | G44: =INDEX(Calculations!E36:E39,MATCH(Calculations!$G$40,Calculations!$G$36:$G$39,0)) -> 1.61 | I44: =IF($C$8=$AG$3,FIXED(AD44,1)&"/"&FIXED(AE44,1),"N/A") -> N/A | K44: =IF($C$8=$AG$3,"N/A",OFFSET(Calculations!$G$17,0,-'Photovoltaic module'!E44)) -> 1.944 | N44: =IF($C$8=$AG$3,"N/A",Calculations!$G$40) -> 1.00 | Q44: Uplift force on PV panel 'Fuplift' [lbs] = | Z44: =-(1-$Z$42)*F*IF(PVType="Fixed", 4, IF(PVType="Ballasted", 1)) -> -284.0 | AD44: =INDEX(IF(θ<=27,Calculations!$D$59:$F$59,Calculations!$D$66:$F$66),1,E44) -> -2.600 | AE44: =INDEX(IF(θ<=27,Calculations!$D$60:$F$60,Calculations!$D$67:$F$67),1,E44) -> 0.500 | AF44: =IF(NOT($C$8=$AG$3),K44*N44,"N/A") -> 1.944
C45: South-West | E45: =Calculations!F7 -> 3 | G45: =INDEX(Calculations!E43:E46,MATCH(Calculations!$G$47,Calculations!$G$43:$G$46,0)) -> 1.61 | I45: =IF($C$8=$AG$3,FIXED(AD45,1)&"/"&FIXED(AE45,1),"N/A") -> N/A | K45: =IF($C$8=$AG$3,"N/A",OFFSET(Calculations!$G$17,0,-'Photovoltaic module'!E45)) -> 1.944 | N45: =IF($C$8=$AG$3,"N/A",Calculations!$G$47) -> 1.00 | Q45: Horizontal 'uplift' force on panel 'Fhoriz' [lbs] = | Z45: =IF(C8=AG3,"N/A",(1-$Z$42)*F_horiz*IF(PVType="Fixed",4,IF(PVType="Ballasted",1))) -> 97.1 | AD45: =INDEX(IF(θ<=27,Calculations!$D$59:$F$59,Calculations!$D$66:$F$66),1,E45) -> -2.600 | AE45: =INDEX(IF(θ<=27,Calculations!$D$60:$F$60,Calculations!$D$67:$F$67),1,E45) -> 0.500 | AF45: =IF(NOT($C$8=$AG$3),K45*N45,"N/A") -> 1.944
C46: North-West | E46: =Calculations!G7 -> 3 | G46: =INDEX(Calculations!E22:E25,MATCH(E,Calculations!$G$22:$G$25,0)) -> 1.34 | I46: =IF($C$8=$AG$3,FIXED(AD46,1)&"/"&FIXED(AE46,1),"N/A") -> N/A | K46: =IF($C$8=$AG$3,"N/A",OFFSET(Calculations!$G$17,0,-'Photovoltaic module'!E46)) -> 1.944 | N46: =IF($C$8=$AG$3,"N/A",E) -> 1.00 | Q46: Vertical uplift force on panel 'Fvert' [lbs] = | Z46: =IF(C8=AG3,"N/A",-(1-$Z$42)*F_vert*IF(PVType="Fixed", 4, IF(PVType="Ballasted", 1))) -> -266.9 | AD46: =INDEX(IF(θ<=27,Calculations!$D$59:$F$59,Calculations!$D$66:$F$66),1,E46) -> -2.600 | AE46: =INDEX(IF(θ<=27,Calculations!$D$60:$F$60,Calculations!$D$67:$F$67),1,E46) -> 0.500 | AF46: =IF(NOT($C$8=$AG$3),K46*N46,"N/A") -> 1.944
AD47: =IF(H37=AD23,MIN(AD43:AD46),INDEX(AD43:AD46,MATCH(H37,AD24:AD27,0))) -> -2.600 | AE47: =MAX(AE43:AE46) -> 0.500 | AF47: =IF(H37=AD23,MAX(AF43:AF46),INDEX(AF43:AF46,MATCH(H37,AD24:AD27,0))) -> 1.944
C48: CALCULATIONS: WIND PRESSURES | Q48: RESULTS
C49: Dead load of panel over module area 'PD' [psf] = | N49: =65/A -> 24.6 | Q49: Building mean height less than 60ft: | Z49: =IF(h<=60,"OK","NOT OK") -> OK
C50: Panel chord length factor 'γc' = | N50: =IF(θ<=7, MIN(1, MAX(0.8, 0.6+0.06*3.25)), "N/A") -> 0.8 | Q50: Building mean height less than min L, B: | Z50: =IF(h<MIN(W_L,W_S),"OK","NOT OK") -> NOT OK
C51: Parapet height factor 'γp' = | N51: =IF(θ<=7, IF(h_pt<4,1,MIN(0.25*h_pt,1.3)), "N/A") -> 1.0 | Q51: Required ballast for uplift 'Wblst_uplift' [lbs] = | Z51: =IF($C$8=$AG$4,(1-$Z$42)*AG15 - 0.9*P_D*A,"N/A") -> N/A
C52: Effective wind area 'A' [sqft] = | N52: =IF(3.25 < 3.25/3, 3.25*3.25/3*pea, 3.25*3.25*pea) -> 2.6 | Q52: Required ballast for sliding 'Wblst_sliding' [lbs] = | Z52: =IF($C$8=$AG$4,(1-$Z$42)*AG16 - 0.9*P_D*A,"N/A") -> N/A
C53: Normalized wind area 'An' [sqft] = | N53: =IF(θ<=7, (1000/(MAX(a_pv,15))^2) * A, "N/A") -> 11.7 | Q53: Required ballast per PV panel 'Wballast' [lbs] = | Z53: =IF($C$8=$AG$4,MAX(Z51,Z52),"N/A") -> N/A
C54: Tributary area 'At' [sqft] = | N54: =3.25*3.25*pea -> 2.6 | Q54: Force per fixing per PV panel 'Fcomp_fixing' [lbs] = | Z54: =IF(NOT($C$8=$AG$4),IF(C8=AG3,Z43,-Z46)/4+65/4,"N/A") -> 83.0
C55: ="Net in-to-roof pressure coefficient "&IF($C$8=$AG$3,"'GCp' =","'GCrn' =") -> Net in-to-roof pressure coefficient 'GCrn' = | N55: =IF(θ<=7, γ_p * $AF$47, IF(θ<=45, AE47, "NOT CALCUABLE")) -> 1.94 | Q55: Force per fixing per PV panel 'Ftens_fixing' [lbs] = | Z55: =IF(NOT($C$8=$AG$4),IF(C8=AG3,Z44,Z46)/4+0.9*65/4,"N/A") -> -52.1
C56: ="Net uplift suction coefficient "&IF($C$8=$AG$3,"'GCp' =","'GCrn' =") -> Net uplift suction coefficient 'GCrn' = | N56: =IF(θ<=7, -γ_p * $AF$47, IF(θ<=45, AD47, "NOT CALCUABLE")) -> -1.94 | Q56: Force per fixing per PV panel 'Fshear_fixing' [lbs] = | Z56: =IF(NOT(C8=AG5),"N/A",Z45/4) -> 24.3
C57: Design in-to-roof wind pressure 'pin-to-roof' [psf] = | N57: =p_dwn -> 26.89 | Q57: Designer's notes here if any.
C58: Design uplift wind suction 'puplift' [psf] = | N58: =-p -> -26.89
C60: Spreadsheet provided by: www.YourSpreadsheets.co.uk | AA60: calculations are based on SEAOC PV2 (2012) and ASCE 7-10 (2010)

Sheet Calculations (hidden)
B2: Zone 3 setback [ft] = | C2: 0 | I2: ="NOTE: For use with " & O7 -> NOTE: For use with Low-rise w/ roof slope θ ≤ 7°
B3: Zone 2 from 3, and Zone 1 from 2 setbacks [ft] = | C3: =IF(θ<=7, 2*a_pv, MAX(MIN(0.1*MIN(W_L,W_S),0.4*h),0.04*MIN(W_L,W_S),3)) -> 26.83281573 | I3: ASCE 7-10 Table 29.3-1 | N3: Options:
B4: Zone 0 setback [ft] = | C4: =IF(θ<=7, 5*a_pv, FALSE) -> 67.08203932 | I4: Velocity Pressure Exposure Coefficients, K_h and K_z
J5: Exposure
B6: Edge Zones | C6: Dirs | D6: N & E | E6: E & S | F6: S & W | G6: W & N | I6: Height | J6: B | K6: C | L6: D | N6: Menu | O6: Option
D7: =IF(d_bN < setback_Z2, IF(d_bE < setback_Z2, 3, 2), IF(d_bE < setback_Z2, 2, IF(AND(d_bN >= setback_Z0, d_bE >= setback_Z0), 0, 1))) -> 3 | E7: =IF(d_bE < setback_Z2, IF(d_bS < setback_Z2, 3, 2), IF(d_bS < setback_Z2, 2, IF(AND(d_bE >= setback_Z0, d_bS >= setback_Z0), 0, 1))) -> 3 | F7: =IF(d_bS < setback_Z2, IF(d_bW < setback_Z2, 3, 2), IF(d_bW < setback_Z2, 2, IF(AND(d_bS >= setback_Z0, d_bW >= setback_Z0), 0, 1))) -> 3 | G7: =IF(d_bW < setback_Z2, IF(d_bN < setback_Z2, 3, 2), IF(d_bN < setback_Z2, 2, IF(AND(d_bW >= setback_Z0, d_bN >= setback_Z0), 0, 1))) -> 3 | I7: 0 | J7: 0.57 | K7: 0.85 | L7: 1.03 | N7: Building Types | O7: Low-rise w/ roof slope θ ≤ 7°
B8: Zone | I8: 15 | J8: 0.57 | K8: 0.85 | L8: 1.03 | O8: Pitched roof
I9: 20 | J9: 0.62 | K9: 0.9 | L9: 1.08
B10: For roof slope <= 7 degrees | I10: 25 | J10: 0.66 | K10: 0.94 | L10: 1.12 | N10: PV Types | O10: Fixed
I11: 30 | J11: 0.7 | K11: 0.98 | L11: 1.16 | O11: Ballasted
B12: Theoretical nominal net pressure coefficients, (GC_rn)_nom | I12: 40 | J12: 0.76 | K12: 1.04 | L12: 1.22
C13: ω (deg) | D13: Zone 3 | E13: Zone 2 | F13: Zone 1 | G13: Zone 0 | I13: 50 | J13: 0.81 | K13: 1.09 | L13: 1.27
C14: 0 - 5 | D14: =IF(A_n < 500, -0.6669*LOG(A_n)+2.3, -0.35*LOG(A_n)+1.445) -> 1.586734303 | E14: =IF(A_n < 500, -0.5743*LOG(A_n)+2, -0.3*LOG(A_n)+1.26) -> 1.385772245 | F14: =IF(A_n < 500, -0.4261*LOG(A_n)+1.5, -0.25*LOG(A_n)+1.025) -> 1.044275733 | G14: =IF(A_n < 500, -0.1853*LOG(A_n)+0.8, -0.2*LOG(A_n)+0.84) -> 0.6018171634 | I14: 60 | J14: 0.85 | K14: 1.13 | L14: 1.31
C15: 15 - 35 | D15: =IF(A_n < 500, -1.0004*LOG(A_n)+3.5, -0.3*LOG(A_n)+1.61)*γ_c -> 1.944038382 | E15: =IF(A_n < 500, -0.8337*LOG(A_n)+2.9, -0.25*LOG(A_n)+1.325)*γ_c -> 1.606670131 | F15: =IF(A_n < 500, -0.5372*LOG(A_n)+2, -0.25*LOG(A_n)+1.225)*γ_c -> 1.140361274 | G15: =IF(A_n < 500, -0.2223*LOG(A_n)+1.1, -0.25*LOG(A_n)+1.175)*γ_c -> 0.689795814 | I15: 70 | J15: 0.89 | K15: 1.17 | L15: 1.34
I16: 80 | J16: 0.93 | K16: 1.21 | L16: 1.38
B17: Interpolation net pressure coefficients, (GC_rn)_nom * γ_c = | D17: =IF(ω<=5,D14, IF(ω>=15,D15, (ω-5)*(D15-D14)/(15-5)+D14 )) -> 1.944038382 | E17: =IF(ω<=5,E14, IF(ω>=15,E15, (ω-5)*(E15-E14)/(15-5)+E14 )) -> 1.606670131 | F17: =IF(ω<=5,F14, IF(ω>=15,F15, (ω-5)*(F15-F14)/(15-5)+F14 )) -> 1.140361274 | G17: =IF(ω<=5,G14, IF(ω>=15,G15, (ω-5)*(G15-G14)/(15-5)+G14 )) -> 0.689795814 | I17: 90 | J17: 0.96 | K17: 1.24 | L17: 1.4
I18: 100 | J18: 0.99 | K18: 1.26 | L18: 1.43
B19: Edge factors | I19: 120 | J19: 1.04 | K19: 1.31 | L19: 1.48
I20: 140 | J20: 1.09 | K20: 1.36 | L20: 1.52
B21: 1 - NORTH-WEST | C21: Direction | D21: d_X | E21: h_c,X | F21: Zone 2 or 3 & d_X > 3 a_pv? | G21: E_X | I21: 160 | J21: 1.13 | K21: 1.39 | L21: 1.55
C22: North | D22: =IF(isEdgePanel_N, d_bN, MIN(d_bN, d_pN)) -> 2 | E22: =IF(isEdgePanel_N,0.1*a_pv,MIN(h_1,1)+3.25*SIN(ω*PI()/180)) -> 1.341640786 | F22: =IF(AND(OR(G7=2, G7=3), d_bN > 3*a_pv), TRUE, FALSE) -> FALSE | G22: =IF(F22, 1.5, IF(D22/E22 <= 2, 1, IF(D22/E22 < 8, 1 + (2 - 1) * (D22/E22 - 2)/(8 - 2), 2))) -> 1 | I22: 180 | J22: 1.17 | K22: 1.43 | L22: 1.58
C23: East | D23: =0 -> 0 | E23: =MIN(h_1,1)+3.25*SIN(ω*PI()/180) -> 1.611565466 | F23: =IF(AND(OR(G7=2, G7=3), W_L - d_bW > 3*a_pv), TRUE, FALSE) -> FALSE | G23: =IF(F23, 1, IF(D23/E23 <= 2, 1, IF(D23/E23 < 8, 1 + (1.5 - 1) * (D23/E23 - 2)/(8 - 2), 1.5))) -> 1 | I23: 200 | J23: 1.2 | K23: 1.46 | L23: 1.61
C24: South | D24: =0 -> 0 | E24: =MIN(h_1,1)+3.25*SIN(ω*PI()/180) -> 1.611565466 | F24: =IF(AND(OR(G7=2, G7=3), W_S - d_bN > 3*a_pv), TRUE, FALSE) -> FALSE | G24: =IF(F24, 1, IF(D24/E24 <= 2, 1, IF(D24/E24 < 8, 1 + (1.5 - 1) * (D24/E24 - 2)/(8 - 2), 1.5))) -> 1 | I24: 250 | J24: 1.28 | K24: 1.53 | L24: 1.68
C25: West | D25: =IF(isEdgePanel_W, d_bW, MIN(d_bW, d_pW)) -> 2 | E25: =IF(isEdgePanel_W,0.1*a_pv,MIN(h_1,1)+3.25*SIN(ω*PI()/180)) -> 1.341640786 | F25: =IF(AND(OR(G7=2, G7=3), d_bW > 3*a_pv), TRUE, FALSE) -> FALSE | G25: =IF(F25, 1, IF(D25/E25 <= 2, 1, IF(D25/E25 < 8, 1 + (1.5 - 1) * (D25/E25 - 2)/(8 - 2), 1.5))) -> 1 | I25: 300 | J25: 1.35 | K25: 1.59 | L25: 1.73
C26: Max | G26: =MAX(G22:G25) -> 1 | I26: 350 | J26: 1.41 | K26: 1.64 | L26: 1.78
I27: 400 | J27: 1.47 | K27: 1.69 | L27: 1.82
B28: 2 - NORTH-EAST | C28: Direction | D28: d_X | E28: h_c,X | F28: Zone 2 or 3 & d_X > 3 a_pv? | G28: E_X | I28: 450 | J28: 1.52 | K28: 1.73 | L28: 1.86
C29: North | D29: =IF(isEdgePanel_N, d_bN, MIN(d_bN, d_pN)) -> 2 | E29: =IF(isEdgePanel_N,0.1*a_pv,MIN(h_1,1)+3.25*SIN(ω*PI()/180)) -> 1.341640786 | F29: =IF(AND(OR(D7=2, D7=3), d_bN > 3*a_pv), TRUE, FALSE) -> FALSE | G29: =IF(F29, 1.5, IF(D29/E29 <= 2, 1, IF(D29/E29 < 8, 1 + (2 - 1) * (D29/E29 - 2)/(8 - 2), 2))) -> 1 | I29: 500 | J29: 1.56 | K29: 1.77 | L29: 1.89
C30: East | D30: =IF(isEdgePanel_E, d_bE, MIN(d_bE, d_pE)) -> 2 | E30: =IF(isEdgePanel_E,0.1*a_pv,MIN(h_1,1)+3.25*SIN(ω*PI()/180)) -> 1.341640786 | F30: =IF(AND(OR(D7=2, D7=3), d_bE > 3*a_pv), TRUE, FALSE) -> FALSE | G30: =IF(F30, 1, IF(D30/E30 <= 2, 1, IF(D30/E30 < 8, 1 + (1.5 - 1) * (D30/E30 - 2)/(8 - 2), 1.5))) -> 1
C31: South | D31: 0 | E31: =MIN(h_1,1)+3.25*SIN(ω*PI()/180) -> 1.611565466 | F31: =IF(AND(OR(D7=2, D7=3), W_S - d_bN > 3*a_pv), TRUE, FALSE) -> FALSE | G31: 1 | I31: ASCE 7-10 Table 26.9-1
C32: West | D32: 0 | E32: =MIN(h_1,1)+3.25*SIN(ω*PI()/180) -> 1.611565466 | F32: =IF(AND(OR(D7=2, D7=3), W_L - d_bE > 3*a_pv), TRUE, FALSE) -> FALSE | G32: =IF(F32, 1, IF(D32/E32 <= 2, 1, IF(D32/E32 < 8, 1 + (1.5 - 1) * (D32/E32 - 2)/(8 - 2), 1.5))) -> 1 | I32: Exposure | J32: α | K32: z_g | L32: z_min
C33: Max | G33: =MAX(G29:G32) -> 1 | I33: B | J33: 7 | K33: 1200 | L33: 30
I34: C | J34: 9.5 | K34: 900 | L34: 15
B35: 3 - SOUTH-EAST | C35: Direction | D35: d_X | E35: h_c,X | F35: Zone 2 or 3 & d_X > 3 a_pv? | G35: E_X | I35: D | J35: 11.5 | K35: 700 | L35: 7
C36: North | D36: 0 | E36: =MIN(h_1,1)+3.25*SIN(ω*PI()/180) -> 1.611565466 | F36: =IF(AND(OR(E7=2, E7=3), W_S - d_bS > 3*a_pv), TRUE, FALSE) -> FALSE | G36: =IF(F36, 1.5, IF(D36/E36 <= 2, 1, IF(D36/E36 < 8, 1 + (2 - 1) * (D36/E36 - 2)/(8 - 2), 2))) -> 1
C37: East | D37: =IF(isEdgePanel_E, d_bE, MIN(d_bE, d_pE)) -> 2 | E37: =IF(isEdgePanel_E,0.1*a_pv,MIN(h_1,1)+3.25*SIN(ω*PI()/180)) -> 1.341640786 | F37: =IF(AND(OR(E7=2, E7=3), d_bE > 3*a_pv), TRUE, FALSE) -> FALSE | G37: =IF(F37, 1, IF(D37/E37 <= 2, 1, IF(D37/E37 < 8, 1 + (1.5 - 1) * (D37/E37 - 2)/(8 - 2), 1.5))) -> 1
C38: South | D38: =IF(isEdgePanel_S, d_bS, MIN(d_bS, d_pS)) -> 2 | E38: =IF(isEdgePanel_S,0.1*a_pv,MIN(h_1,1)+3.25*SIN(ω*PI()/180)) -> 1.341640786 | F38: =IF(AND(OR(E7=2, E7=3), d_bS > 3*a_pv), TRUE, FALSE) -> FALSE | G38: 1
C39: West | D39: 0 | E39: =MIN(h_1,1)+3.25*SIN(ω*PI()/180) -> 1.611565466 | F39: =IF(AND(OR(E7=2, E7=3), W_L - d_bE > 3*a_pv), TRUE, FALSE) -> FALSE | G39: =IF(F39, 1, IF(D39/E39 <= 2, 1, IF(D39/E39 < 8, 1 + (1.5 - 1) * (D39/E39 - 2)/(8 - 2), 1.5))) -> 1
C40: Max | G40: =MAX(G36:G39) -> 1
B42: 4 - SOUTH-WEST | C42: Direction | D42: d_X | E42: h_c,X | F42: Zone 2 or 3 & d_X > 3 a_pv? | G42: E_X
C43: North | D43: 0 | E43: =MIN(h_1,1)+3.25*SIN(ω*PI()/180) -> 1.611565466 | F43: =IF(AND(OR(F7=2, F7=3), W_S - d_bS > 3*a_pv), TRUE, FALSE) -> FALSE | G43: =IF(F43, 1.5, IF(D43/E43 <= 2, 1, IF(D43/E43 < 8, 1 + (2 - 1) * (D43/E43 - 2)/(8 - 2), 2))) -> 1
C44: East | D44: 0 | E44: =MIN(h_1,1)+3.25*SIN(ω*PI()/180) -> 1.611565466 | F44: =IF(AND(OR(F7=2, F7=3), W_L - d_bW > 3*a_pv), TRUE, FALSE) -> FALSE | G44: =IF(F44, 1, IF(D44/E44 <= 2, 1, IF(D44/E44 < 8, 1 + (1.5 - 1) * (D44/E44 - 2)/(8 - 2), 1.5))) -> 1
C45: South | D45: =IF(isEdgePanel_S, d_bS, MIN(d_bS, d_pS)) -> 2 | E45: =IF(isEdgePanel_S,0.1*a_pv,MIN(h_1,1)+3.25*SIN(ω*PI()/180)) -> 1.341640786 | F45: =IF(AND(OR(F7=2, F7=3), d_bS > 3*a_pv), TRUE, FALSE) -> FALSE | G45: 1
C46: West | D46: =IF(isEdgePanel_W, d_bW, MIN(d_bW, d_pW)) -> 2 | E46: =IF(isEdgePanel_W,0.1*a_pv,MIN(h_1,1)+3.25*SIN(ω*PI()/180)) -> 1.341640786 | F46: =IF(AND(OR(F7=2, F7=3), d_bW > 3*a_pv), TRUE, FALSE) -> FALSE | G46: =IF(F46, 1, IF(D46/E46 <= 2, 1, IF(D46/E46 < 8, 1 + (1.5 - 1) * (D46/E46 - 2)/(8 - 2), 1.5))) -> 1
C47: Max | G47: =MAX(G43:G46) -> 1
B50: For roof slopes greater than 7 degrees - calcs not used
B52: α = | C52: =IF(exposureCategory="B", Calculations!$J$33, IF(exposureCategory="C", Calculations!$J$34, IF(exposureCategory="D", Calculations!$J$35, "INVALID EXP CATEGORY"))) -> 9.5
B53: z_g = | C53: =IF(exposureCategory="B", Calculations!$K$33, IF(exposureCategory="C", Calculations!$K$34, IF(exposureCategory="D", Calculations!$K$35, "INVALID EXP CATEGORY"))) -> 900
B55: For roof slopes greater than 7 degrees and less than or equal to 27 degrees
B57: GC_p
C58: Direction | D58: Zone 1 | E58: Zone 2 | F58: Zone 3
C59: Uplift | D59: =IF(A<=10, -0.9, IF(A<100, -0.9 + (-0.8 - -0.9) * (A-10)/(100-10), -0.8)) -> -0.9 | E59: =IF(A<=10, -1.5, IF(A<100, -1.5 + (-1.2 - -1.5) * (A-10)/(100-10), -1.2)) -> -1.5 | F59: =IF(A<=10, -2.6, IF(A<100, -2.6 + (-2 - -2.6) * (A-10)/(100-10), -2)) -> -2.6 | H59: minus is 'away from surface'
C60: Downward pressure | D60: =IF(A<=10, 0.5, IF(A<100, 0.5 + (0.3 - 0.5) * (A-10)/(100-10), 0.3)) -> 0.5 | E60: =IF(A<=10, 0.5, IF(A<100, 0.5 + (0.3 - 0.5) * (A-10)/(100-10), 0.3)) -> 0.5 | F60: =IF(A<=10, 0.5, IF(A<100, 0.5 + (0.3 - 0.5) * (A-10)/(100-10), 0.3)) -> 0.5 | H60: plus is 'towards surface'
B62: For roof slopes greater than 27 and less than or equal to 45
B64: GC_p
C65: Direction | D65: Zone 1 | E65: Zone 2 | F65: Zone 3
C66: Uplift | D66: =IF(A<=10, -1, IF(A<100, -1 + (-0.8 - -1) * (A-10)/(100-10), -0.8)) -> -1 | E66: =IF(A<=10, -1.2, IF(A<100, -1.2 + (-1 - -1.2) * (A-10)/(100-10), -1)) -> -1.2 | F66: =IF(A<=10, -1.2, IF(A<100, -1.2 + (-1 - -1.2) * (A-10)/(100-10), -1)) -> -1.2
C67: Downward pressure | D67: =IF(A<=10, 0.9, IF(A<100, 0.9 + (0.8 - 0.9) * (A-10)/(100-10), 0.8)) -> 0.9 | E67: =IF(A<=10, 0.9, IF(A<100, 0.9 + (0.8 - 0.9) * (A-10)/(100-10), 0.8)) -> 0.9 | F67: =IF(A<=10, 0.9, IF(A<100, 0.9 + (0.8 - 0.9) * (A-10)/(100-10), 0.8)) -> 0.9

Sheet from author
B1: Version: 1.1. - FREE LITE VERSION | K1: © 2014-2019 Damian Janicki
C3: For latest updates and news visit: | G3: Contact me at:
C4: www.YourSpreadsheets.co.uk | G4: info@yourspreadsheets.co.uk
C7: General information: Note: This spreadsheet contains macros. These must be enabled to use this spreadsheet.
C13: The Author takes no liability for use of this spreadsheet and gives no guarantee that it is error free. In no event shall the Author be responsible for any special, incidental or consequential damages whatsoever arising from the use of this spreadsheet, even if the Author has been advised of the possibility of such damage. This spreadsheet is a freeware and can be distributed freely but only in its original form. Reverse-engineering, decompiling or disassembling of this spreadsheet is not allowable. A full list of terms and conditions can be found here:
C24: www.yourspreadsheets.co.uk/checkout.html
C25: By using this spreadsheet you understand and agree with the terms and conditions. You also acknowledge that you do not become an owner of this spreadsheet. Damian Janicki
C32: This is a Free Lite Version. The full version of the spreadsheet allows to: - Input your company information and change logo - Change anlge, weight and area of PV module.
C39: This spreadsheet is based on SEAOC PV2 and ASCE 7-10. Changelog: 2019.11.17 - v.1.2. - added checks for maximum panel width and height above roof 2014.02.22 - v.1.0. - official release of the spreadsheet.
